[Event "Titled Tuesday Blitz June 13 Late 2023"]
[White "Eisa Mohmood, Alkhoori"]
[Black "Hoffmann, Asa"]
[WhiteFideId "9316116"]
[BlackFideId "2001470"]
[WhiteElo "1364"]
[BlackElo "2117"]
[Result "0-1"]
[Round "5"]
[TimeControl "180+2"]
[Date "2023.06.13"]
[WhiteClock "0:00:01"]
[BlackClock "0:00:23"]
[Board "157"]

1. e4 {[%clk 0:03:00]}  d6 {[%clk 0:02:59]} 2. d4 {[%clk 0:03:00]}  Nf6 {[%clk 0:02:54]} 3. Nc3 {[%clk 0:03:00]}  c6 {[%clk 0:02:54]} 4. f4 {[%clk 0:02:55]}  Qa5 {[%clk 0:02:53]} 5. Bd3 {[%clk 0:02:46]}  e5 {[%clk 0:02:53]} 6. Nf3 {[%clk 0:02:40]}  exd4 {[%clk 0:02:51]} 7. Nxd4 {[%clk 0:02:39]}  Qb6 {[%clk 0:02:50]} 8. Be2 {[%clk 0:02:29]}  Be7 {[%clk 0:02:45]} 9. Qd3 {[%clk 0:02:28]}  Na6 {[%clk 0:02:44]} 10. a3 {[%clk 0:02:16]}  Nc5 {[%clk 0:02:38]} 11. Qe3 {[%clk 0:02:06]}  O-O {[%clk 0:02:37]} 12. h3 {[%clk 0:01:57]}  Re8 {[%clk 0:02:34]} 13. O-O {[%clk 0:01:56]}  Bf8 {[%clk 0:02:34]} 14. e5 {[%clk 0:01:49]}  Nfd7 {[%clk 0:02:17]} 15. Nf3 {[%clk 0:01:36]}  dxe5 {[%clk 0:02:06]} 16. fxe5 {[%clk 0:01:34]}  Ne6 {[%clk 0:02:04]} 17. Ne4 {[%clk 0:01:26]}  h6 {[%clk 0:01:58]} 18. Qxb6 {[%clk 0:01:18]}  axb6 {[%clk 0:01:56]} 19. Be3 {[%clk 0:01:17]}  Ndc5 {[%clk 0:01:54]} 20. Nxc5 {[%clk 0:01:12]}  Bxc5 {[%clk 0:01:50]} 21. Bxc5 {[%clk 0:01:10]}  bxc5 {[%clk 0:01:50]} 22. Bc4 {[%clk 0:01:10]}  b5 {[%clk 0:01:49]} 23. Bd3 {[%clk 0:01:04]}  Nd4 {[%clk 0:01:35]} 24. Nxd4 {[%clk 0:00:53]}  cxd4 {[%clk 0:01:34]} 25. Be4 {[%clk 0:00:54]}  Bd7 {[%clk 0:01:27]} 26. b4 {[%clk 0:00:54]}  Rxe5 {[%clk 0:01:26]} 27. Bf3 {[%clk 0:00:51]}  Rae8 {[%clk 0:01:25]} 28. Rad1 {[%clk 0:00:50]}  c5 {[%clk 0:01:20]} 29. bxc5 {[%clk 0:00:51]}  Rxc5 {[%clk 0:01:19]} 30. Rxd4 {[%clk 0:00:51]}  Be6 {[%clk 0:01:17]} 31. Rf2 {[%clk 0:00:45]}  Rc3 {[%clk 0:01:15]} 32. Rb4 {[%clk 0:00:42]}  Bc4 {[%clk 0:01:15]} 33. a4 {[%clk 0:00:41]}  Rb8 {[%clk 0:01:08]} 34. axb5 {[%clk 0:00:39]}  Rxb5 {[%clk 0:01:07]} 35. Rxb5 {[%clk 0:00:38]}  Bxb5 {[%clk 0:01:07]} 36. Rd2 {[%clk 0:00:38]}  g6 {[%clk 0:01:05]} 37. Kf2 {[%clk 0:00:38]}  Ba4 {[%clk 0:01:04]} 38. Be4 {[%clk 0:00:37]}  f5 {[%clk 0:01:04]} 39. Bd3 {[%clk 0:00:35]}  Kg7 {[%clk 0:01:03]} 40. Re2 {[%clk 0:00:35]}  Kf6 {[%clk 0:01:02]} 41. Ke1 {[%clk 0:00:35]}  Bc6 {[%clk 0:01:01]} 42. Kd2 {[%clk 0:00:34]}  Rc5 {[%clk 0:01:01]} 43. g3 {[%clk 0:00:31]}  g5 {[%clk 0:00:56]} 44. c4 {[%clk 0:00:30]}  Re5 {[%clk 0:00:53]} 45. Rf2 {[%clk 0:00:24]}  Ra5 {[%clk 0:00:41]} 46. Kc3 {[%clk 0:00:22]}  Ke5 {[%clk 0:00:41]} 47. Re2+ {[%clk 0:00:22]}  Be4 {[%clk 0:00:41]} 48. Bxe4 {[%clk 0:00:20]}  fxe4 {[%clk 0:00:40]} 49. Kb4 {[%clk 0:00:21]}  Ra1 {[%clk 0:00:37]} 50. c5 {[%clk 0:00:19]}  Kd4 {[%clk 0:00:36]} 51. Rd2+ {[%clk 0:00:16]}  Ke3 {[%clk 0:00:36]} 52. Rc2 {[%clk 0:00:12]}  Kf3 {[%clk 0:00:32]} 53. c6 {[%clk 0:00:06]}  Ra8 {[%clk 0:00:30]} 54. g4 {[%clk 0:00:04]}  e3 {[%clk 0:00:29]} 55. Kc3 {[%clk 0:00:02]}  Rd8 {[%clk 0:00:27]} 56. c7 {[%clk 0:00:01]}  Rc8 {[%clk 0:00:27]} 57. Kd3 {[%clk 0:00:01]}  e2 {[%clk 0:00:26]} 58. Rxe2 {[%clk 0:00:01]}  Rxc7 {[%clk 0:00:26]} 59. Re3+ {[%clk 0:00:01]}  Kf2 {[%clk 0:00:25]} 60. Re2+ {[%clk 0:00:01]}  Kf3 {[%clk 0:00:24]} 61. Re3+ {[%clk 0:00:02]}  Kf4 {[%clk 0:00:25]} 62. Re4+ {[%clk 0:00:02]}  Kg3 {[%clk 0:00:25]} 63. Re3+ {[%clk 0:00:03]}  Kh4 {[%clk 0:00:25]} 64. Ke2 {[%clk 0:00:03]}  Rf7 {[%clk 0:00:24]} 65. Kd2 {[%clk 0:00:03]}  Rf2+ {[%clk 0:00:23]} 66. Kd3 {[%clk 0:00:03]}  Rh2 {[%clk 0:00:23]} 67. Re6 {[%clk 0:00:03]}  Rxh3+ {[%clk 0:00:23]} 68. Ke4 {[%clk 0:00:04]}  Kxg4 {[%clk 0:00:23]} 69. Rxh6 {[%clk 0:00:01]}  Rxh6 {[%clk 0:00:23]} 0-1


[Site "https://www.chess.com"]

[Event "Titled Tuesday Blitz June 13 Late 2023"]
[White "Quinones Garcia, Santiago"]
[Black "Chess_maylovsky"]
[WhiteFideId "4408497"]
[WhiteElo "2173"]
[BlackElo "2047"]
[Result "1-0"]
[Round "5"]
[TimeControl "180+2"]
[Date "2023.06.13"]
[WhiteClock "0:00:15"]
[BlackClock "0:00:07"]
[Board "158"]

1. d4 {[%clk 0:02:50]}  Nf6 {[%clk 0:02:58]} 2. c4 {[%clk 0:02:42]}  g6 {[%clk 0:02:58]} 3. Nc3 {[%clk 0:02:41]}  d5 {[%clk 0:02:58]} 4. cxd5 {[%clk 0:02:40]}  Nxd5 {[%clk 0:02:59]} 5. e4 {[%clk 0:02:41]}  Nxc3 {[%clk 0:02:59]} 6. bxc3 {[%clk 0:02:42]}  c5 {[%clk 0:02:59]} 7. Nf3 {[%clk 0:02:37]}  Bg7 {[%clk 0:03:00]} 8. Be3 {[%clk 0:02:35]}  Qa5 {[%clk 0:02:53]} 9. Nd2 {[%clk 0:02:34]}  Nc6 {[%clk 0:02:50]} 10. d5 {[%clk 0:01:48]}  Ne5 {[%clk 0:02:48]} 11. Rc1 {[%clk 0:01:36]}  O-O {[%clk 0:02:23]} 12. f3 {[%clk 0:01:32]}  e6 {[%clk 0:02:22]} 13. Nb3 {[%clk 0:01:07]}  Qxa2 {[%clk 0:02:01]} 14. Nxc5 {[%clk 0:01:00]}  exd5 {[%clk 0:02:00]} 15. exd5 {[%clk 0:01:00]}  b6 {[%clk 0:01:44]} 16. Ne4 {[%clk 0:00:58]}  Bf5 {[%clk 0:01:40]} 17. Be2 {[%clk 0:00:53]}  Bxe4 {[%clk 0:01:40]} 18. fxe4 {[%clk 0:00:53]}  Nc4 {[%clk 0:01:33]} 19. Bd4 {[%clk 0:00:51]}  Rfe8 {[%clk 0:01:22]} 20. Bxg7 {[%clk 0:00:49]}  Rxe4 {[%clk 0:01:12]} 21. Bd4 {[%clk 0:00:39]}  Rae8 {[%clk 0:00:27]} 22. Rc2 {[%clk 0:00:38]}  Nb2 {[%clk 0:00:20]} 23. O-O {[%clk 0:00:26]}  Nxd1 {[%clk 0:00:19]} 24. Rxa2 {[%clk 0:00:25]}  Rxe2 {[%clk 0:00:17]} 25. Rxe2 {[%clk 0:00:24]}  Rxe2 {[%clk 0:00:17]} 26. Rxd1 {[%clk 0:00:25]}  Kf8 {[%clk 0:00:15]} 27. d6 {[%clk 0:00:24]}  Ke8 {[%clk 0:00:15]} 28. d7+ {[%clk 0:00:19]}  Kxd7 {[%clk 0:00:15]} 29. Bxb6+ {[%clk 0:00:20]}  Kc6 {[%clk 0:00:14]} 30. Bxa7 {[%clk 0:00:21]}  Ra2 {[%clk 0:00:14]} 31. Bd4 {[%clk 0:00:22]}  Kd5 {[%clk 0:00:14]} 32. Rf1 {[%clk 0:00:22]}  f5 {[%clk 0:00:13]} 33. Re1 {[%clk 0:00:23]}  Kc4 {[%clk 0:00:13]} 34. h3 {[%clk 0:00:23]}  Kd3 {[%clk 0:00:13]} 35. Re7 {[%clk 0:00:23]}  Ra1+ {[%clk 0:00:11]} 36. Kh2 {[%clk 0:00:23]}  h5 {[%clk 0:00:11]} 37. Re6 {[%clk 0:00:23]}  g5 {[%clk 0:00:11]} 38. Re5 {[%clk 0:00:23]}  f4 {[%clk 0:00:11]} 39. Rxg5 {[%clk 0:00:23]}  Ra2 {[%clk 0:00:11]} 40. Rf5 {[%clk 0:00:23]}  Ke4 {[%clk 0:00:11]} 41. Rf8 {[%clk 0:00:17]}  h4 {[%clk 0:00:10]} 42. Rf7 {[%clk 0:00:16]}  Rc2 {[%clk 0:00:09]} 43. Re7+ {[%clk 0:00:16]}  Kf5 {[%clk 0:00:08]} 44. Kg1 {[%clk 0:00:16]}  Rc1+ {[%clk 0:00:07]} 45. Kf2 {[%clk 0:00:17]}  Rc2+ {[%clk 0:00:08]} 46. Kf3 {[%clk 0:00:17]}  Rc1 {[%clk 0:00:07]} 47. Re5+ {[%clk 0:00:17]}  Kg6 {[%clk 0:00:06]} 48. Kxf4 {[%clk 0:00:18]}  Rf1+ {[%clk 0:00:05]} 49. Kg4 {[%clk 0:00:18]}  Rd1 {[%clk 0:00:02]} 50. Kxh4 {[%clk 0:00:17]}  Rd2 {[%clk 0:00:03]} 51. g4 {[%clk 0:00:18]}  Kf7 {[%clk 0:00:01]} 52. Rf5+ {[%clk 0:00:18]}  Ke6 {[%clk 0:00:01]} 53. Rf6+ {[%clk 0:00:17]}  Ke7 {[%clk 0:00:02]} 54. Rf2 {[%clk 0:00:17]}  Kd7 {[%clk 0:00:03]} 55. Rxd2 {[%clk 0:00:17]}  Ke6 {[%clk 0:00:04]} 56. g5 {[%clk 0:00:16]}  Kf5 {[%clk 0:00:04]} 57. Rf2+ {[%clk 0:00:16]}  Kg6 {[%clk 0:00:05]} 58. Rf6+ {[%clk 0:00:17]}  Kh7 {[%clk 0:00:05]} 59. Kh5 {[%clk 0:00:17]}  Kg7 {[%clk 0:00:05]} 60. Rf5+ {[%clk 0:00:16]}  Kg8 {[%clk 0:00:05]} 61. Rd5 {[%clk 0:00:14]}  Kf7 {[%clk 0:00:06]} 62. Rd6 {[%clk 0:00:14]}  Ke7 {[%clk 0:00:06]} 63. Rf6 {[%clk 0:00:13]}  Ke8 {[%clk 0:00:06]} 64. g6 {[%clk 0:00:14]}  Ke7 {[%clk 0:00:06]} 65. g7 {[%clk 0:00:14]}  Kd7 {[%clk 0:00:07]} 66. g8=Q {[%clk 0:00:14]}  Kc7 {[%clk 0:00:07]} 67. Qg7+ {[%clk 0:00:14]}  Kc8 {[%clk 0:00:07]} 68. Rf8# {[%clk 0:00:15]} 1-0


[Site "https://www.chess.com"]

[Event "Titled Tuesday Blitz June 13 Late 2023"]
[White "Magallanes, Rey Jomar"]
[Black "Druska, Juraj"]
[WhiteFideId "5205948"]
[BlackFideId "14915650"]
[WhiteElo "2252"]
[BlackElo "2415"]
[Result "0-1"]
[Round "5"]
[TimeControl "180+2"]
[Date "2023.06.13"]
[WhiteClock "0:00:27"]
[BlackClock "0:00:25"]
[Board "163"]

1. e4 {[%clk 0:03:00]}  a6 {[%clk 0:02:50]} 2. Nf3 {[%clk 0:02:58]}  b5 {[%clk 0:02:51]} 3. d4 {[%clk 0:02:58]}  Bb7 {[%clk 0:02:52]} 4. Bd3 {[%clk 0:02:57]}  c5 {[%clk 0:02:51]} 5. c3 {[%clk 0:02:56]}  cxd4 {[%clk 0:02:51]} 6. cxd4 {[%clk 0:02:56]}  Nc6 {[%clk 0:02:51]} 7. Nc3 {[%clk 0:02:55]}  Nf6 {[%clk 0:02:51]} 8. e5 {[%clk 0:02:54]}  b4 {[%clk 0:02:39]} 9. exf6 {[%clk 0:02:52]}  bxc3 {[%clk 0:02:40]} 10. fxg7 {[%clk 0:02:52]}  cxb2 {[%clk 0:02:26]} 11. gxh8=Q {[%clk 0:02:49]}  bxa1=Q {[%clk 0:02:25]} 12. Bh6 {[%clk 0:02:36]}  Qa5+ {[%clk 0:02:22]} 13. Nd2 {[%clk 0:02:27]}  Qxd1+ {[%clk 0:02:20]} 14. Kxd1 {[%clk 0:02:27]}  O-O-O {[%clk 0:02:10]} 15. Bxf8 {[%clk 0:02:23]}  Qa4+ {[%clk 0:02:06]} 16. Bc2 {[%clk 0:02:22]}  Qxa2 {[%clk 0:02:04]} 17. Qg7 {[%clk 0:02:04]}  Nb4 {[%clk 0:01:48]} 18. Qxh7 {[%clk 0:01:56]}  Rxf8 {[%clk 0:01:38]} 19. Re1 {[%clk 0:01:43]}  Qa1+ {[%clk 0:01:15]} 20. Bb1 {[%clk 0:01:41]}  Qxd4 {[%clk 0:01:14]} 21. Re3 {[%clk 0:01:38]}  Rh8 {[%clk 0:01:01]} 22. Qxf7 {[%clk 0:01:34]}  Rxh2 {[%clk 0:01:00]} 23. Qe8+ {[%clk 0:01:23]}  Kc7 {[%clk 0:00:59]} 24. Qxe7 {[%clk 0:01:24]}  Rh1+ {[%clk 0:00:51]} 25. Re1 {[%clk 0:01:24]}  Bxg2 {[%clk 0:00:47]} 26. Rxh1 {[%clk 0:01:12]}  Bxh1 {[%clk 0:00:45]} 27. Qg5 {[%clk 0:01:06]}  Bf3+ {[%clk 0:00:41]} 28. Ke1 {[%clk 0:01:06]}  Bc6 {[%clk 0:00:40]} 29. Qg3+ {[%clk 0:01:02]}  Kb7 {[%clk 0:00:39]} 30. Qb3 {[%clk 0:00:56]}  a5 {[%clk 0:00:38]} 31. Bc2 {[%clk 0:00:52]}  a4 {[%clk 0:00:28]} 32. Qb1 {[%clk 0:00:52]}  a3 {[%clk 0:00:28]} 33. Nb3 {[%clk 0:00:29]}  Qc3+ {[%clk 0:00:23]} 34. Nd2 {[%clk 0:00:26]}  a2 {[%clk 0:00:19]} 35. Qc1 {[%clk 0:00:20]}  a1=Q {[%clk 0:00:17]} 36. Qxa1 {[%clk 0:00:20]}  Qxa1+ {[%clk 0:00:18]} 37. Bb1 {[%clk 0:00:21]}  Be4 {[%clk 0:00:17]} 38. Nxe4 {[%clk 0:00:20]}  Qxb1+ {[%clk 0:00:18]} 39. Ke2 {[%clk 0:00:21]}  Qxe4+ {[%clk 0:00:19]} 40. Kd2 {[%clk 0:00:21]}  Nd3 {[%clk 0:00:19]} 41. Kc3 {[%clk 0:00:21]}  Qf3 {[%clk 0:00:20]} 42. Kd4 {[%clk 0:00:21]}  Nxf2 {[%clk 0:00:20]} 43. Ke5 {[%clk 0:00:21]}  Qe4+ {[%clk 0:00:21]} 44. Kd6 {[%clk 0:00:22]}  Qc6+ {[%clk 0:00:21]} 45. Ke7 {[%clk 0:00:23]}  d5 {[%clk 0:00:21]} 46. Kd8 {[%clk 0:00:24]}  d4 {[%clk 0:00:22]} 47. Ke7 {[%clk 0:00:24]}  d3 {[%clk 0:00:23]} 48. Kf8 {[%clk 0:00:25]}  Qc7 {[%clk 0:00:23]} 49. Kg8 {[%clk 0:00:25]}  d2 {[%clk 0:00:24]} 50. Kh8 {[%clk 0:00:26]}  d1=Q {[%clk 0:00:25]} 51. Kg8 {[%clk 0:00:27]}  Qdd8# {[%clk 0:00:25]} 0-1


[Site "https://www.chess.com"]

[Event "Titled Tuesday Blitz June 13 Late 2023"]
[White "Wang, Alexander J"]
[Black "Sadovsky, Artem"]
[WhiteFideId "30955270"]
[BlackFideId "4155840"]
[WhiteElo "2233"]
[BlackElo "2314"]
[Result "0-1"]
[Round "5"]
[TimeControl "180+2"]
[Date "2023.06.13"]
[WhiteClock "0:00:19"]
[BlackClock "0:00:39"]
[Board "164"]

1. e4 {[%clk 0:03:00]}  g6 {[%clk 0:02:48]} 2. d4 {[%clk 0:02:57]}  Bg7 {[%clk 0:02:42]} 3. Nf3 {[%clk 0:02:56]}  d6 {[%clk 0:02:38]} 4. Nc3 {[%clk 0:02:54]}  e5 {[%clk 0:02:37]} 5. dxe5 {[%clk 0:02:54]}  dxe5 {[%clk 0:02:38]} 6. Qxd8+ {[%clk 0:02:54]}  Kxd8 {[%clk 0:02:39]} 7. Bc4 {[%clk 0:02:47]}  f6 {[%clk 0:02:39]} 8. Be3 {[%clk 0:02:41]}  Nd7 {[%clk 0:02:37]} 9. O-O-O {[%clk 0:02:40]}  Bh6 {[%clk 0:02:38]} 10. Bxh6 {[%clk 0:02:36]}  Nxh6 {[%clk 0:02:39]} 11. Nd5 {[%clk 0:02:34]}  Rf8 {[%clk 0:02:37]} 12. Rd2 {[%clk 0:02:23]}  c6 {[%clk 0:02:37]} 13. Ne3 {[%clk 0:02:21]}  Ke7 {[%clk 0:02:37]} 14. Rhd1 {[%clk 0:02:20]}  b5 {[%clk 0:02:38]} 15. Bd3 {[%clk 0:02:17]}  Nc5 {[%clk 0:02:38]} 16. c3 {[%clk 0:02:17]}  Be6 {[%clk 0:02:28]} 17. Kb1 {[%clk 0:02:07]}  a5 {[%clk 0:02:26]} 18. Bc2 {[%clk 0:02:04]}  a4 {[%clk 0:02:22]} 19. h3 {[%clk 0:02:00]}  Nf7 {[%clk 0:02:16]} 20. g4 {[%clk 0:01:54]}  Rfd8 {[%clk 0:01:50]} 21. h4 {[%clk 0:01:30]}  Rxd2 {[%clk 0:01:44]} 22. Rxd2 {[%clk 0:01:29]}  Nd6 {[%clk 0:01:44]} 23. Re2 {[%clk 0:01:18]}  Ndxe4 {[%clk 0:01:22]} 24. g5 {[%clk 0:00:57]}  a3 {[%clk 0:01:02]} 25. gxf6+ {[%clk 0:00:34]}  Kxf6 {[%clk 0:01:03]} 26. Nd1 {[%clk 0:00:29]}  axb2 {[%clk 0:00:55]} 27. Kxb2 {[%clk 0:00:28]}  Rxa2+ {[%clk 0:00:53]} 28. Kb1 {[%clk 0:00:27]}  Bb3 {[%clk 0:00:42]} 29. Ne3 {[%clk 0:00:19]}  Nxc3+ {[%clk 0:00:39]} 0-1


[Site "https://www.chess.com"]

[Event "Titled Tuesday Blitz June 13 Late 2023"]
[White "Novikova, Margarita"]
[Black "Jimenez Garcia, Emmanuel"]
[WhiteFideId "14109689"]
[BlackFideId "6504779"]
[WhiteElo "2013"]
[BlackElo "2440"]
[Result "0-1"]
[Round "5"]
[TimeControl "180+2"]
[Date "2023.06.13"]
[WhiteClock "0:01:38"]
[BlackClock "0:02:26"]
[Board "166"]

1. e4 {[%clk 0:02:59]}  c5 {[%clk 0:02:57]} 2. Nc3 {[%clk 0:02:56]}  Qa5 {[%clk 0:02:57]} 3. Nf3 {[%clk 0:02:53]}  a6 {[%clk 0:02:57]} 4. g3 {[%clk 0:02:49]}  b5 {[%clk 0:02:57]} 5. Bg2 {[%clk 0:02:49]}  Bb7 {[%clk 0:02:57]} 6. O-O {[%clk 0:02:47]}  b4 {[%clk 0:02:57]} 7. Nd5 {[%clk 0:02:46]}  e6 {[%clk 0:02:57]} 8. Nf4 {[%clk 0:02:43]}  Bxe4 {[%clk 0:02:56]} 9. Re1 {[%clk 0:02:42]}  Nf6 {[%clk 0:02:55]} 10. d3 {[%clk 0:02:40]}  Bb7 {[%clk 0:02:52]} 11. a3 {[%clk 0:02:38]}  Be7 {[%clk 0:02:50]} 12. Bd2 {[%clk 0:02:38]}  Qb6 {[%clk 0:02:50]} 13. axb4 {[%clk 0:02:32]}  cxb4 {[%clk 0:02:51]} 14. Be3 {[%clk 0:02:27]}  Qc7 {[%clk 0:02:50]} 15. Qd2 {[%clk 0:02:24]}  O-O {[%clk 0:02:47]} 16. Bd4 {[%clk 0:02:15]}  d6 {[%clk 0:02:46]} 17. Be3 {[%clk 0:02:05]}  Rc8 {[%clk 0:02:44]} 18. Rec1 {[%clk 0:02:04]}  Nbd7 {[%clk 0:02:44]} 19. d4 {[%clk 0:02:02]}  Ne4 {[%clk 0:02:41]} 20. Qd3 {[%clk 0:02:01]}  d5 {[%clk 0:02:40]} 21. Nd2 {[%clk 0:01:55]}  Nxd2 {[%clk 0:02:39]} 22. Bxd2 {[%clk 0:01:55]}  a5 {[%clk 0:02:39]} 23. Nh5 {[%clk 0:01:52]}  Nf6 {[%clk 0:02:37]} 24. Qe2 {[%clk 0:01:50]}  Nxh5 {[%clk 0:02:35]} 25. Qxh5 {[%clk 0:01:51]}  g6 {[%clk 0:02:35]} 26. Qh6 {[%clk 0:01:50]}  Bf6 {[%clk 0:02:35]} 27. h4 {[%clk 0:01:49]}  Bxd4 {[%clk 0:02:33]} 28. Bf4 {[%clk 0:01:43]}  Be5 {[%clk 0:02:30]} 29. Bg5 {[%clk 0:01:42]}  Bg7 {[%clk 0:02:27]} 30. Bf4 {[%clk 0:01:38]}  Bxh6 {[%clk 0:02:26]} 0-1


[Site "https://www.chess.com"]

[Event "Titled Tuesday Blitz June 13 Late 2023"]
[White "Omariev, Maksim"]
[Black "Powell, Paul"]
[WhiteFideId "4193423"]
[BlackFideId "2005840"]
[WhiteElo "2335"]
[BlackElo "2158"]
[Result "1-0"]
[Round "5"]
[TimeControl "180+2"]
[Date "2023.06.13"]
[WhiteClock "0:00:02"]
[BlackClock "0:00:00"]
[Board "168"]

1. g4 {[%clk 0:02:50]}  d5 {[%clk 0:02:58]} 2. Bg2 {[%clk 0:02:37]}  c6 {[%clk 0:02:56]} 3. h3 {[%clk 0:02:36]}  h5 {[%clk 0:02:33]} 4. g5 {[%clk 0:02:34]}  e5 {[%clk 0:02:27]} 5. d4 {[%clk 0:02:34]}  e4 {[%clk 0:02:19]} 6. c4 {[%clk 0:02:33]}  Bd6 {[%clk 0:02:13]} 7. Nc3 {[%clk 0:02:33]}  Ne7 {[%clk 0:02:06]} 8. h4 {[%clk 0:02:33]}  Be6 {[%clk 0:02:00]} 9. Qb3 {[%clk 0:02:16]}  b5 {[%clk 0:01:05]} 10. cxb5 {[%clk 0:02:13]}  c5 {[%clk 0:01:05]} 11. dxc5 {[%clk 0:01:57]}  Bxc5 {[%clk 0:00:53]} 12. Qa4 {[%clk 0:01:57]}  Qb6 {[%clk 0:00:44]} 13. e3 {[%clk 0:01:54]}  Nd7 {[%clk 0:00:38]} 14. Nge2 {[%clk 0:01:54]}  O-O {[%clk 0:00:26]} 15. b4 {[%clk 0:01:28]}  Bd6 {[%clk 0:00:20]} 16. Bb2 {[%clk 0:01:28]}  Ne5 {[%clk 0:00:19]} 17. Nf4 {[%clk 0:01:19]}  Nc4 {[%clk 0:00:17]} 18. Qb3 {[%clk 0:01:19]}  Be5 {[%clk 0:00:17]} 19. Na4 {[%clk 0:01:04]}  Qc7 {[%clk 0:00:14]} 20. Bxe5 {[%clk 0:01:02]}  Qxe5 {[%clk 0:00:14]} 21. Rc1 {[%clk 0:00:59]}  Rac8 {[%clk 0:00:13]} 22. Nc5 {[%clk 0:00:57]}  Bg4 {[%clk 0:00:10]} 23. Nxd5 {[%clk 0:00:50]}  Nxd5 {[%clk 0:00:09]} 24. Rxc4 {[%clk 0:00:48]}  Nxe3 {[%clk 0:00:08]} 25. Qxe3 {[%clk 0:00:39]}  Qa1+ {[%clk 0:00:06]} 26. Rc1 {[%clk 0:00:39]}  Qxa2 {[%clk 0:00:06]} 27. O-O {[%clk 0:00:40]}  Rcd8 {[%clk 0:00:04]} 28. Nxe4 {[%clk 0:00:35]}  Rfe8 {[%clk 0:00:03]} 29. Rfe1 {[%clk 0:00:34]}  Bf5 {[%clk 0:00:02]} 30. Qf4 {[%clk 0:00:33]}  Bg6 {[%clk 0:00:02]} 31. Rc7 {[%clk 0:00:31]}  Qb3 {[%clk 0:00:01]} 32. Rxa7 {[%clk 0:00:22]}  Re6 {[%clk 0:00:01]} 33. Ra6 {[%clk 0:00:09]}  Rde8 {[%clk 0:00:02]} 34. Rxe6 {[%clk 0:00:08]}  Rxe6 {[%clk 0:00:02]} 35. Qb8+ {[%clk 0:00:07]}  Kh7 {[%clk 0:00:02]} 36. Qb6 {[%clk 0:00:02]}  Qxb4 {[%clk 0:00:02]} 37. Qe3 {[%clk 0:00:02]}  Qxb5 {[%clk 0:00:02]} 38. f3 {[%clk 0:00:02]}  Qf5 {[%clk 0:00:00]} 39. Qf2 {[%clk 0:00:02]} 1-0


[Site "https://www.chess.com"]

[Event "Titled Tuesday Blitz June 13 Late 2023"]
[White "Kaufman, Raymond"]
[Black "Ricaurte Lopez, Juan Carlos"]
[WhiteFideId "2015056"]
[BlackFideId "3600327"]
[WhiteElo "2264"]
[BlackElo "2200"]
[Result "0-1"]
[Round "5"]
[TimeControl "180+2"]
[Date "2023.06.13"]
[WhiteClock "0:00:00"]
[BlackClock "0:00:26"]
[Board "170"]

1. c4 {[%clk 0:02:52]}  e5 {[%clk 0:02:58]} 2. g3 {[%clk 0:02:49]}  Nf6 {[%clk 0:02:58]} 3. Bg2 {[%clk 0:02:48]}  c6 {[%clk 0:02:55]} 4. d4 {[%clk 0:02:45]}  e4 {[%clk 0:02:52]} 5. d5 {[%clk 0:02:44]}  Bc5 {[%clk 0:02:48]} 6. Nh3 {[%clk 0:02:26]}  d6 {[%clk 0:02:43]} 7. O-O {[%clk 0:02:09]}  O-O {[%clk 0:02:40]} 8. Nc3 {[%clk 0:01:59]}  Re8 {[%clk 0:02:36]} 9. Kh1 {[%clk 0:01:40]}  h6 {[%clk 0:02:34]} 10. Be3 {[%clk 0:01:36]}  Bxe3 {[%clk 0:02:29]} 11. fxe3 {[%clk 0:01:37]}  Na6 {[%clk 0:02:22]} 12. Nf2 {[%clk 0:01:35]}  Nc5 {[%clk 0:02:21]} 13. b4 {[%clk 0:01:34]}  Na6 {[%clk 0:02:16]} 14. a3 {[%clk 0:01:24]}  Bf5 {[%clk 0:02:08]} 15. Qd2 {[%clk 0:01:07]}  Nc7 {[%clk 0:02:01]} 16. dxc6 {[%clk 0:01:00]}  bxc6 {[%clk 0:02:00]} 17. Rad1 {[%clk 0:01:00]}  d5 {[%clk 0:01:44]} 18. cxd5 {[%clk 0:01:00]}  cxd5 {[%clk 0:01:42]} 19. Na4 {[%clk 0:00:54]}  Qe7 {[%clk 0:01:37]} 20. Rc1 {[%clk 0:00:51]}  Nb5 {[%clk 0:01:32]} 21. Qb2 {[%clk 0:00:48]}  Rac8 {[%clk 0:01:26]} 22. Nc5 {[%clk 0:00:43]}  Nd6 {[%clk 0:01:20]} 23. Qd4 {[%clk 0:00:40]}  Bg6 {[%clk 0:01:12]} 24. Bh3 {[%clk 0:00:38]}  Bf5 {[%clk 0:01:07]} 25. g4 {[%clk 0:00:32]}  Be6 {[%clk 0:01:03]} 26. a4 {[%clk 0:00:23]}  a5 {[%clk 0:01:00]} 27. b5 {[%clk 0:00:20]}  Nc4 {[%clk 0:00:59]} 28. Nxe6 {[%clk 0:00:19]}  fxe6 {[%clk 0:00:57]} 29. g5 {[%clk 0:00:17]}  hxg5 {[%clk 0:00:55]} 30. Rg1 {[%clk 0:00:15]}  e5 {[%clk 0:00:53]} 31. Qc3 {[%clk 0:00:13]}  Rc7 {[%clk 0:00:46]} 32. Rxg5 {[%clk 0:00:13]}  d4 {[%clk 0:00:39]} 33. exd4 {[%clk 0:00:12]}  Nd5 {[%clk 0:00:39]} 34. Qg3 {[%clk 0:00:10]}  exd4 {[%clk 0:00:35]} 35. Rg1 {[%clk 0:00:09]}  Nf6 {[%clk 0:00:29]} 36. Be6+ {[%clk 0:00:08]}  Qxe6 {[%clk 0:00:28]} 37. Rxg7+ {[%clk 0:00:00]}  Kf8 {[%clk 0:00:26]} 0-1


[Site "https://www.chess.com"]